Cogmind - Beta 14 @@@ ROGUE MODE // 2024.11.11 @ 17:20:53 Player: UberDoot Result: Destroyed by Piercing Trap Performance ------------- Evolutions (0) 0 Regions Visited (2) 400 Robots Destroyed (28) 140 Value Destroyed (795) 795 Prototype IDs (4) 80 Alien Tech Used (0) 0 Bonus (0) 0 TOTAL SCORE: 1415 Bonus ------- None Cogmind --------- Core Integrity 0/250 Matter 300/300 Energy 99/100 System Corruption 0% Temperature Cool (0) Movement Rolling (110) Ox2 Location -10/Subcaves Parts ------- > --- POWER (1) -------- (None) > --- PROPULSION (2) --- Spiked Treads Wheel > --- UTILITY (2) ------ Large Storage Unit Hardened Light Armor Plating > --- WEAPON (2) ------- Battle Rifle Battle Cannon > --- INVENTORY (15) --- Improved Heat Sink Subdweller Optics Improved Terrain Scanner Improved Targeting Computer Hardened Light Armor Plating Hardened Light Armor Plating Scrap Shield Riot Gun Subdweller Beam Cannon Battle Rifle Mining Laser Scrap Shield Fragment (49) Scrap Shield Fragment (40) Scrap Shield Fragment (34) Peak State ------------ > --- POWER ------------ Light Nuclear Core > --- PROPULSION ------- Spiked Treads Subdweller Monowheel > --- UTILITY ---------- Large Storage Unit Hardened Light Armor Plating > --- WEAPON ----------- Riot Gun Subdweller Beam Cannon > --- INVENTORY -------- Heat Sink Improved Heat Sink Subdweller Optics Improved Terrain Scanner Improved Targeting Computer Hardened Light Armor Plating Hardened Light Armor Plating Scrap Shield Mining Laser Scrap Shield Fragment Scrap Shield Fragment Scrap Shield Fragment [Rating: 17] Favorites ----------- Power Ion Engine Engine Ion Engine Power Core Light Nuclear Core Propulsion Light Treads Treads Light Treads Wheel Wheel Utility Large Storage Unit Device Seismic Detector Storage Large Storage Unit Protection Hardened Light Armor Plating Weapon Assault Rifle Energy Gun Heavy EM Pulse Gun Energy Cannon Subdweller Beam Cannon Ballistic Gun Assault Rifle Ballistic Cannon Battle Cannon Special Weapon Mining Laser Build | -11 -10 -10 ------- Run | Yrd Mat Sub Slots Evolved . | . . . Power . | . . . Propulsion . | . . . Utility . | . . . Weapon . | . . . Parts Attached 51 | 7 20 24 Power 3 | 1 1 1 Engine 2 | 1 1 . Core 1 | . . 1 Reactor . | . . . Propulsion 11 | 2 2 7 Treads 7 | 2 2 3 Leg . | . . . Wheel 4 | . . 4 Hover . | . . . Flight . | . . . Utility 9 | 2 2 5 Device 4 | 1 1 2 Storage 2 | 1 1 . Processor . | . . . Hackware . | . . . Protection 3 | . . 3 Artifact . | . . . Weapon 28 | 2 15 11 Energy Gun 9 | . 6 3 Energy Cannon 1 | . . 1 Ballistic Gun 6 | 2 2 2 Ballistic Cannon 4 | . 1 3 Launcher . | . . . Special Weapon 8 | . 6 2 Impact Weapon . | . . . Slashing Weapon . | . . . Piercing Weapon . | . . . Special Melee Weapon . | . . . Unidentified Prototypes . | . . . Parts Lost 12 | . 1 11 Power 2 | . . 2 Propulsion 4 | . . 4 Utility 2 | . 1 1 Weapon 4 | . . 4 Highest Loss Streak 6 | . 1 6 To Critical Strikes . | . . . Average Slot Usage (%) 97 | . 99 95 Engine 10 | . 14 6 Core 1 | . . 3 Treads 23 | . 28 19 Wheel 3 | . . 7 Device 10 | . 14 7 Storage 14 | . 14 14 Protection 3 | . . 6 Energy Gun 12 | . 10 13 Ballistic Gun 10 | . 15 6 Ballistic Cannon 3 | . . 6 Peak Build Rating 17 | 7 13 17 Average Rating 11 | 5 9 13 On Entrance 6 | . 7 13 Naked Turns . | . . . Heaviest Build 41 | 13 32 41 Greatest Support 40 | 40 40 40 Greatest Overweight (x) 4 | . . 4 Average Overweight (x) . | . . 1 Largest Inventory Capacity 15 | 8 15 15 Average Capacity 13 | 7 11 15 Most Carried 15 | 7 15 15 Average Carried 12 | 5 10 14 Final Capacity 15 | 8 15 15 Final Carried 15 | 7 15 15 Class Distribution -------------------- 63% | Mutant 36% | Scavenger-Mutant Dominant Class ---------------- Mutant | -10/Materials Mutant | -10/Subcaves Resources | -11 -10 -10 ----------- Run | Yrd Mat Sub Matter Collected 990 | 225 333 432 Remotely . | . . . Salvage Created 992 | 40 411 541 Parts 76 | 5 35 36 Haulers Intercepted 1 | . 1 . Recyclers Shooed 2 | 1 1 . Parts Field Recycled . | . . . Retrieved Matter . | . . . Parts Self-Destructed 11 | . . 11 Prevented 1 | . . 1 Kills | -11 -10 -10 ------- Run | Yrd Mat Sub Combat Hostiles Destroyed 21 | . 7 14 Guns 14 | . 7 7 Cannons 7 | . . 7 Classes Destroyed 8 | 1 5 2 Builder 1 | . 1 . Tunneler 2 | 2 . . Hauler 1 | . 1 . Watcher 3 | . 3 . Swarmer 4 | . 1 3 Grunt 8 | . 6 2 Sentry 1 | . . 1 Subdweller 8 | . . 8 Best Kill Streak 3 | 2 3 3 Combat Bots Only 3 | . 2 3 Max Kills in Single Turn 2 | 1 2 1 Gunslinging . | . . . Exploded . | . . . Melee . | . . . Uniques/NPCs Destroyed . | . . . Combat | -11 -10 -10 -------- Run | Yrd Mat Sub Hostile Shots Fired 125 | . 35 90 Missed 31 | . 6 25 Damage Taken 1864 | . 368 1496 Core 258 | . 39 219 Absorbed by Shields . | . . . Core Remaining (%) 100 | 100 . . Volleys Fired 106 | 4 53 49 Largest 2 | 2 2 2 Hottest 130 | 40 100 130 Shots Fired 194 | 8 93 93 Gun 149 | 8 80 61 Cannon 29 | . . 29 Launcher . | . . . Special 16 | . 13 3 Kinetic 100 | 8 54 38 Thermal 47 | . 39 8 Explosive . | . . . Electromagnetic 47 | . . 47 Robot Hit Streak 13 | 3 7 13 Robot Miss Streak 4 | 4 3 3 Penetration Max . | . . . Secondary Targets . | . . . Shots Hit Robots 124 | 3 51 70 Core Hits 52 | 2 22 28 Critical Kills . | . . . Critical Parts Destroyed . | . . . Critical Strikes . | . . . Melee Attacks . | . . . Impact . | . . . Slashing . | . . . Piercing . | . . . Sneak Attacks . | . . . Combat Hostiles . | . . . Follow-up Attacks . | . . . Damage Inflicted 1926 | 36 680 1210 Guns 1454 | 36 680 738 Cannons 433 | . . 433 Explosions 39 | . . 39 Melee . | . . . Ramming . | . . . Kinetic 987 | 36 438 513 Thermal 364 | . 242 122 Explosive . | . . . Electromagnetic 575 | . . 575 Impact . | . . . Slashing . | . . . Piercing . | . . . Highest Corruption . | . . . Average Corruption . | . . . Corruption Purged . | . . . Corruption Blocked . | . . . Overload Shots . | . . . Overflow Damage . | . . . Projectiles . | . . . Explosions . | . . . Melee . | . . . Knockbacks 1 | . . 1 Impact . | . . . Kinetic 1 | . . 1 Secondary . | . . . Self-Inflicted Damage 27 | . . 27 Shots 1 | . . 1 Rammed . | . . . Targets Rammed . | . . . Kicked . | . . . Crushed . | . . . Highest Temperature 390 | . 207 390 Average Temperature 73 | . 51 109 Received Heat Transfer 1221 | . 216 1005 Effects 2 | . . 2 Shutdowns 1 | . . 1 Damage (minor) 1 | . . 1 Siege Activations . | . . . Robots Corrupted . | . . . Combat Hostiles . | . . . Parts Fried 1 | . . 1 Impact Corruptions . | . . . Robots Melted . | . . . Combat Hostiles . | . . . Parts Melted . | . . . Heat Transferred 753 | . 592 161 Parts Sabotaged . | . . . Parts Stolen . | . . . Parts Stripped . | . . . Power Chain Reactions 2 | . . 2 Alert | -11 -10 -10 ------- Run | Yrd Mat Sub Peak Influence 253 | 10 253 . Initial 6 | . 6 . Average 75 | 4 81 . Maximum Alert Level 1 | . 1 . Low Security (%) 95 | 100 94 . Level 1 4 | . 5 . Level 2 . | . . . Level 3 . | . . . Level 4 . | . . . Level 5 . | . . . High Security . | . . . Max Security . | . . . Squads Dispatched 2 | . 2 . Investigation 1 | . 1 . Extermination . | . . . Reinforcement 1 | . 1 . Assault . | . . . Garrison . | . . . Intercept . | . . . Searches Triggered . | . . . Construction Impeded . | . . . Haulers Reinforced . | . . . Active Scanning Responses . | . . . Cargo Convoy Interrupts . | . . . Stealth | -11 -10 -10 --------- Run | Yrd Mat Sub Distress Signals . | . . . Communications Jammed . | . . . Distress Signals . | . . . Times Spotted 37 | . 20 17 Peak Tracking Total 6 | . 4 6 Tactical Retreats 4 | . 3 1 Traps | -11 -10 -10 ------- Run | Yrd Mat Sub Traps Triggered 5 | . 1 4 Indirectly . | . . . Trap Hack Attempts . | . . . Triggered . | . . . Disarmed . | . . . Reprogrammed . | . . . Reused . | . . . Traps Extracted . | . . . Installed . | . . . Triggered . | . . . Machines | -11 -10 -10 ---------- Run | Yrd Mat Sub Machines Disabled 1 | . 1 . Max in Single Turn 1 | . 1 . Machines Repaired . | . . . Machines Dismantled . | . . . Machines Sabotaged . | . . . Overloaded Fab Kills . | . . . Hacking | -11 -10 -10 --------- Run | Yrd Mat Sub Machines Accessed 10 | . 10 . Terminals 7 | . 7 . Fabricators . | . . . Repair Stations 1 | . 1 . Recycling Units 2 | . 2 . Scanalyzers . | . . . Garrison Access . | . . . Total Hacks 29 | . 29 . Successful 14 | . 14 . Failed 14 | . 14 . Catastrophic 2 | . 2 . Database Lockouts 1 | . 1 . Manual 17 | . 17 . Terminals 24 | . 24 . Fabricators . | . . . Repair Stations 3 | . 3 . Recycling Units 2 | . 2 . Scanalyzers . | . . . Garrison Access . | . . . Terminal Hacks 9 | . 9 . Robot Analysis 3 | . 3 . Prototype ID Bank 3 | . 3 . Emergency Access Points 1 | . 1 . Locate Traps 1 | . 1 . Zone Layout 1 | . 1 . Fabricator Hacks . | . . . Repair Station Hacks 1 | . 1 . Scan Component 1 | . 1 . Recycling Unit Hacks 2 | . 2 . Retrieve Components 2 | . 2 . Scanalyzer . | . . . Garrison Access Hacks . | . . . Unauthorized Hacks 2 | . 2 . Terminals 2 | . 2 . Botnet 2 | . 2 . Fabricators . | . . . Repair Stations . | . . . Recycling Units . | . . . Scanalyzers . | . . . Garrison Access . | . . . Data Cores Recovered . | . . . Used . | . . . Hacking Detections 8 | . 8 . Full Trace Events . | . . . Feedback Events . | . . . Feedback Blocked . | . . . Robot Schematics Acquired . | . . . Robots Built . | . . . Authchips . | . . . Time . | . . . Total Robot Build Rating . | . . . Part Schematics Acquired . | . . . Parts Built . | . . . Authchips . | . . . Time . | . . . Total Part Build Rating . | . . . Parts Repaired . | . . . Time . | . . . Parts Recycled . | . . . Recycled Matter . | . . . Retrieved Matter . | . . . Retrieved Components 10 | . 10 . Parts Scanalyzed . | . . . Part Schematics Acquired . | . . . Parts Damaged . | . . . Bothacking | -11 -10 -10 ------------ Run | Yrd Mat Sub Used RIF Installer . | . . . Robots Hacked . | . . . Non-combat . | . . . Combat . | . . . Robot Hacks Applied . | . . . Relay Couplers Released . | . . . Fabnet Peak Effective % . | . . . Robots Rewired . | . . . Allies Hacked . | . . . Hacks Repelled . | . . . Allies | -11 -10 -10 -------- Run | Yrd Mat Sub Total Allies . | . . . Largest Group . | . . . Highest-Rated Group . | . . . Highest-Rated Ally . | . . . Total Orders . | . . . Ally Attacks . | . . . Total Damage . | . . . Kills . | . . . Allies Corrupted . | . . . Allies Melted . | . . . Intel | -11 -10 -10 ------- Run | Yrd Mat Sub Robot Analysis Total 3 | . 3 . Derelict Logs Recovered 1 | . . 1 Drone Launches . | . . . Drone Recoveries . | . . . Exploration | -11 -10 -10 ------------- Run | Yrd Mat Sub Turns Passed 3558 | 151 1635 1772 Spaces Moved 2036 | 78 839 1119 Core 4 | 4 . . Treads 1404 | 74 839 491 Legs . | . . . Wheels 628 | . . 628 Hover . | . . . Flight . | . . . Fastest Speed 50 | 50 160 107 Average Speed 146 | 154 160 136 Slowest Speed 240 | 160 160 240 Overloaded Moves . | . . . Propulsion Burnouts . | . . . Robots Hopped . | . . . Cave-ins Triggered . | . . . Exploration Rate (%) 57 | 6 93 72 Regions Visited 2 Branch Regions 1 Pre-discovered Areas . | . . . Known Exits Taken . | . . . Unknown Exits Taken 2 | 1 1 . Scrap Searched 3 | . . 3 Spaces Dug 11 | . 11 . Terrain Destroyed 22 | . 12 10 Melee . | . . . Projectile 12 | . 12 . AOE 10 | . . 10 Terrain Rammed . | . . . Walls Destroyed . | . . . Machines Disabled . | . . . Actions | -11 -10 -10 --------- Run | Yrd Mat Sub Total 2373 | 97 1012 1264 Wait 118 | 2 66 50 Move 2034 | 77 838 1119 Hop . | . . . Pick Up 38 | 7 19 12 Fast Attach 13 | 7 2 4 Attach 11 | . 1 10 Detach 3 | . . 3 Swap 27 | . 17 10 Drop 23 | . 16 7 Fire 106 | 4 53 49 Melee . | . . . Ram . | . . . Kick . | . . . Crush . | . . . Escape Stasis . | . . . Rewire . | . . . Trap . | . . . Miscellaneous . | . . . Route ------- -11/Scrapyard -10/Materials (discovered 5 exits: [*Mat x2] / [*Min x2] / [*Sub]) -10/Subcaves (discovered 2 exits: [*Mat] / [*Rec]) History --------- Turn | Location | Event 23 | -11/Scrapyard | Discovered new exit (range 15) 152 | -11/Scrapyard | Entered Materials 305 | -10/Materials | Build established: Mutant 409 | -10/Materials | Discovered new exit (range 12) 499 | -10/Materials | Discovered new exit (range 16) 1016 | -10/Materials | Discovered new exit (range 4) 1034 | -10/Materials | Discovered new exit (range 16) 1326 | -10/Materials | Central database locked down 1597 | -10/Materials | Build established: Scavenger-Mutant 1721 | -10/Materials | Discovered new exit (range 10) 1787 | -10/Materials | Entered Subcaves 1819 | -10/Subcaves | Shifting Twisted Machinery released Barrage Gun 1829 | -10/Subcaves | Shifting Twisted Machinery released Sub. Beam Cannon 2019 | -10/Subcaves | Shifting Twisted Machinery released Shrapnel Trap 2493 | -10/Subcaves | Discovered new exit (range 12) 2668 | -10/Subcaves | Lost 6 parts (1p2n1u2w) 2715 | -10/Subcaves | Core integrity fell below 50% 2905 | -10/Subcaves | Build established: Mutant 3067 | -10/Subcaves | Learned 4 Materials zone layouts 3301 | -10/Subcaves | Discovered new exit (range 12) 3493 | -10/Subcaves | Core integrity fell below 20% 3559 | -10/Subcaves | Destroyed by Piercing Trap Last Messages --------------- 03099_ Lgt. Armor Plating fries itself beyond repair. 03150_ Acquired 3 matter. 03158_ Acquired 2 matter. 03159_ Acquired 5 matter. 03301_ EXIT=FOUND 03305_ S-10 Pest destroyed. 03314_ Flight Unit fries itself beyond repair. 03314_ Acquired 34 matter. 03320_ Flight Unit fries itself beyond repair. 03321_ Lgt. Assault Rifle fries itself beyond repair. 03321_ Flight Unit fries itself beyond repair. 03494_ HI-HNB(R) destroyed. 03498_ Acquired 34 matter. 03501_ Dropped Scrap Shield Fragment. 03503_ Acquired Scrap Shield Fragment. 03559_ Triggered Piercing Trap. 03559_ Spikes shoot up from the floor. 03559_ Critical hit (Impale). Map ----- +----------------------------------------------------+ | ????????# ## #% ##????## ### #???? | | ???????## "*%[ ##??## ### #???? | | ???????# ! #### ###?# #???# | | ???????# #???# ##???? | | ???????# ##??### #??#?? | | ???????# ## ## ###??# #????? | | ???????## ####### #### #????? | | ????????######?????##### ## ## ##???? | | ???????????????????????####### ## #???? | | ?????????????????????????????## ## #???? | | ??????????????????????????????## ## ##??? | | ???????????????????????????????##### #??? | | ????????????????????????????????#??# #??# | | ????????????????????????????????#?## #??? | | ????????????????????????????#####??### #??# | | ????????????????????????????# ##???# ## ##??? | | ????????????????????????????# ##### #####???? | | ???#???#????????#???????????# ###????? | | ???????????????????#???????## ##???? | | ????????????????????????#???## #?#?? | | ?????????????????????????????# ### #???? | | ??#???????????#??????????????## ##?## #???? | | #??????####????????#???####### ##???### ##???? | | #?????## #??????####?## ### ######## #??#?? | | ####### #?????## ### # ## # ##???? | | ##????# # @ #???? | | #???## ### #???? | | #?### #?## # ###### #???? | | # ## ### ##### ## ;;##?????###???? | | ##### # # ###" ;##????????????? | | ###?# ###" ;#???#?????????? | | #### ^ #" ;# ""# #??????#? | | ### ### ^ "" #??????? | | #?# #### ### "" #?????? | | #?## ##??# ^ ## ""### ##?????? | | #??####???# ## ^ ## ""#????"?????#? | | #??##?????##### #### ##""##???????????? | | ##?#?#?????????#####??#########?###????????????? | | #???###?#?#????????????????????????????????????? | | ##?# #????????????????????????????????????????? | | ## #???#???????????????????????????#????????? | | #????????????????????????????????????????? | | ##?????????????????????????#?????????????? | | #?????#??????????????????????????????????? | | ##????????????????????????????????????????? | | ##?????????????????????????????????????????? | | # ##??##???????#?????????????????????????????? | | ##??????????????????????????????????????????? | | ##??#????????????????????????????????????????? | | ###???#??????#????????????????????????????????? | +----------------------------------------------------+ Best States ------------- Heat Dissipation 39 Energy Generation 14 Energy Capacity 250 Matter Stores 300 Matter Capacity 300 Sight Range 16 Terrain Scan Range 16 Terrain Scan Density 10 Armor Coverage 150 Evasion (%) 40 Recoil Reduction 2 Item Schematics ----------------- None Robot Schematics ------------------ None Fabricated ------------ Nothing Alien Tech Used ----------------- None Achievements -------------- None Challenges ------------ None Game ------ Seed CarbideDiametricPlating Manual? 0 Play Time 00:29:12 Cumulative 79.6 hours Start 2024.11.11 @ 16:56:11 End 2024.11.11 @ 17:20:53 Sessions 1 Manual Loads 0 Difficulty Rogue Special Mode None Game No. 52 Rogue 52 Adventurer 0 Explorer 0 Win Type - Total 1 Types 1/0/0/0/0/0/0/0/0 Lore% 37 Gallery% 55 Achievement% 43 Wizard Run 0 Options --------- Layout 2 ASCII 0 Keyboard 1 Movement Numpad Keybinds 0 Fullscreen 2 Font 24/Terminus Map View 50x49 Zoom Use 0% Tactical HUD 1 Map Filters NONE Filters NONE Steam 1 RUN: fe251a93-a142-41c5-9900-12ca3c2949fb